bitfinex/quotes_ETHUSD_20240701
["timestamp","ask_amount","ask_price","bid_price","bid_amount"]
[1719876135809,2.32257726,3442.5,3442.4,3.64088]
[1719876136010,0.82305608,3442.5,3442.4,3.64088]
[1719876136252,2.32257778,3442.5,3442.4,3.64088]
[1719876137004,2.32257778,3442.5,3442.4,2.90488]
[1719876138058,2.32257778,3442.5,3441.7,2.90546]
[1719876138059,2.174,3442.4,3441.7,2.90546]
[1719876138240,2.174,3442.2,3441.5,2.90562]
[1719876138435,2.174,3442.0,3441.5,2.90562]
[1719876138766,2.32320309,3441.9,3441.5,2.90562]
[1719876138908,1.6582396,3441.8,3441.5,2.90562]
[1719876139110,2.16118989,3441.7,3441.5,2.90562]
[1719876139339,1.8202528,3441.6,3441.5,2.90562]
[1719876140120,0.32040675,3441.6,3441.5,2.90562]
[1719876140320,0.15839355,3441.6,3441.5,2.90562]
[1719876140518,2.174,3442.0,3441.6,2.9056]
[1719876140862,2.32317111,3441.9,3441.6,3.6416]
[1719876141055,2.16116351,3441.8,3441.6,3.6416]
[1719876141231,1.65822667,3441.7,3441.6,3.6416]
[1719876141634,1.82023427,3441.7,3441.6,3.6416]
[1719876141840,1.82023359,3441.7,3441.6,3.6416]
[1719876142419,1.82023359,3441.7,3441.6,0.736]
[1719876142873,1.82023371,3441.7,3441.6,0.736]
[1719876144975,1.8202363,3441.7,3441.6,0.736]
[1719876148178,0.32043072,3441.7,3441.6,0.736]
[1719876148342,1.82023635,3441.7,3441.6,0.736]
[1719876148542,0.32043072,3441.7,3441.6,0.736]
[1719876149139,1.82023639,3441.7,3441.6,0.736]
[1719876149858,2.32319264,3441.7,3441.4,2.90578]
[1719876150092,1.65822879,3441.6,3441.4,2.90578]
[1719876150278,0.15842312,3441.5,3441.4,2.90578]
[1719876150486,0.32031918,3441.5,3441.4,2.90578]
[1719876151180,0.32031918,3441.5,3441.3,2.90586]
[1719876151510,0.15842312,3441.4,3441.3,2.90586]
[1719876152193,0.15842312,3441.8,3441.3,2.90586]
[1719876152404,2.32320033,3441.7,3441.3,2.90586]
[1719876152553,1.65833354,3441.6,3441.3,2.90586]
[1719876152755,0.15842312,3441.5,3441.3,2.90586]
[1719876153049,0.32031918,3441.4,3441.3,2.90586]
[1719876153836,0.32031918,3441.4,3440.7,2.3561]
[1719876153955,0.32031918,3441.4,3440.5,0.736]
[1719876153956,0.66142871,3441.3,3440.5,0.736]
[1719876154160,2.9061,3441.1,3440.4,2.3561]
[1719876154360,0.15842312,3441.0,3440.5,0.736]
[1719876154667,0.16163113,3440.9,3440.5,0.736]
[1719876154864,0.15842312,3440.8,3440.5,0.736]
[1719876155304,0.16156696,3440.7,3440.5,0.736]
[1719876155796,0.32003033,3440.6,3440.5,0.736]
[1719876155967,0.16156696,3440.6,3440.5,0.736]
[1719876156147,5.08013,3441.0,3440.5,0.736]
[1719876156353,0.32003508,3440.9,3440.5,0.736]
[1719876156588,0.15846812,3440.8,3440.5,0.736]
[1719876156774,0.16148049,3440.7,3440.5,0.736]
[1719876156980,5.08013,3441.0,3440.5,0.736]
[1719876157182,0.31994803,3440.9,3440.5,0.736]
[1719876157387,0.15846754,3440.8,3440.5,0.736]
[1719876157902,0.16148049,3440.7,3440.5,0.736]
[1719876158258,5.08013,3441.0,3440.5,0.736]
[1719876158458,0.16147769,3440.6,3440.5,0.736]
[1719876158660,5.08013,3441.0,3440.5,0.736]
[1719876158859,0.15846455,3440.9,3440.5,0.736]
[1719876159171,0.31994224,3440.9,3440.5,0.736]
[1719876159470,0.16147769,3440.9,3440.5,0.736]
[1719876161768,12.55997,3441.2,3440.5,0.736]
[1719876161972,0.31994223,3441.1,3440.5,0.736]
[1719876162163,0.15846454,3441.0,3440.5,0.736]
[1719876162363,2.90606,3441.1,3440.5,0.736]
[1719876162595,0.31994241,3441.0,3440.5,0.736]
[1719876162893,0.16147769,3441.0,3440.5,0.736]
[1719876163474,12.55997,3441.2,3440.5,0.736]
[1719876163665,0.16147769,3440.9,3440.5,0.736]
[1719876163893,12.55997,3441.2,3440.5,0.736]
[1719876164095,0.16147769,3440.8,3440.5,0.736]
[1719876164306,12.55997,3441.2,3440.5,0.736]
[1719876164473,0.16147769,3440.7,3440.5,0.736]
[1719876164666,2.90604,3441.1,3440.5,0.736]
[1719876164862,0.16147769,3440.6,3440.5,0.736]
[1719876165402,2.90604,3441.1,3440.5,0.736]
[1719876165588,0.16147769,3441.0,3440.5,0.736]
[1719876166499,13.05996,3441.2,3440.5,0.736]
[1719876166704,0.16147213,3440.9,3440.5,3.64255]
[1719876166888,7.48,3441.2,3440.7,3.64237]
[1719876167091,0.16147213,3440.8,3440.7,8.07145]
[1719876167289,7.48,3441.2,3441.1,2.90604]
[1719876167460,7.48,3441.2,3441.1,6.191344]
[1719876167666,7.64136331,3441.2,3441.1,6.191344]
[1719876169704,7.64136331,3441.2,3441.1,9.097384]
[1719876170118,7.64136331,3441.2,3441.1,12.097384]
[1719876172922,0.16136331,3441.2,3441.1,12.097384]
[1719876173414,7.48,3441.6,3441.5,2.9057]
[1719876173621,0.00520016,3441.9,3441.5,2.9057]
[1719876174982,5.74089888,3441.8,3441.1,3.0]
[1719876175184,0.66137888,3441.7,3441.0,3.64212]
[1719876175392,1.16137888,3441.6,3441.1,3.0]
[1719876175693,0.158429,3441.5,3441.1,3.0]
[1719876176219,5.07952,3441.8,3441.1,3.0]
[1719876176220,0.5,3441.6,3441.1,3.0]
[1719876176423,0.66145246,3441.5,3441.1,3.0]
[1719876176630,5.07952,3441.8,3441.1,3.0]
[1719876176830,0.66143753,3441.7,3441.1,3.0]
[1719876177019,1.16143753,3441.6,3441.1,3.0]
[1719876177338,5.07952,3441.8,3441.1,3.0]
[1719876177339,0.15844031,3441.5,3441.1,3.0]
[1719876177548,5.07952,3441.8,3441.1,3.0]
[1719876177832,0.5,3441.6,3441.1,3.0]
[1719876178040,0.15844204,3441.5,3441.1,3.0]
[1719876178410,5.07952,3441.8,3441.1,3.0]
[1719876178611,0.5,3441.6,3441.1,3.0]
[1719876178931,0.66144512,3441.5,3441.1,3.0]
[1719876179114,5.07952,3441.8,3441.1,3.0]
[1719876179326,2.16147184,3441.7,3441.1,3.0]
[1719876179627,1.16144873,3441.6,3441.1,3.0]
[1719876179836,1.16144873,3441.6,3440.6,2.90645]
[1719876179837,0.66144873,3441.5,3440.6,2.90645]
[1719876179996,2.83544873,3441.4,3440.7,2.90638]
[1719876180197,0.66144873,3441.3,3440.7,2.90638]
[1719876180433,0.66147224,3441.2,3440.7,2.90638]
[1719876180600,2.82172087,3441.4,3440.7,2.90638]
[1719876180935,0.6614783,3441.3,3440.7,2.90638]
[1719876181105,0.15844982,3441.2,3440.7,2.90638]
[1719876181309,2.90596,3441.2,3440.4,2.90662]
[1719876181531,2.1617288,3441.1,3440.5,0.736]
[1719876181698,0.66152788,3441.0,3440.4,2.90662]
[1719876181901,0.15846102,3440.9,3440.5,0.736]
[1719876182111,0.15846102,3440.8,3440.5,0.736]
[1719876182329,3.37001913,3441.2,3440.5,0.736]
[1719876182501,2.80952914,3441.1,3440.5,0.736]
[1719876182822,2.16180827,3441.0,3440.5,0.736]
[1719876183022,0.66154885,3440.9,3440.4,2.90662]
[1719876183222,3.55378087,3441.1,3440.2,2.90678]
[1719876183223,0.31984756,3440.8,3440.2,2.90678]
[1719876183415,0.15846751,3440.7,3440.3,3.736]
[1719876183611,0.31983083,3440.7,3440.3,3.736]
[1719876183833,0.16136332,3440.7,3440.3,3.736]
[1719876184038,3.55378087,3441.1,3440.3,3.736]
[1719876184217,0.16136332,3440.6,3440.3,3.64272]
[1719876184408,2.90606,3441.1,3440.3,3.64272]
[1719876184745,0.16136332,3440.5,3440.3,3.64272]
[1719876184910,0.50308761,3441.0,3440.3,3.64272]
[1719876185101,0.16136332,3440.4,3440.3,3.64272]
[1719876185304,2.174,3440.8,3440.3,3.0]
[1719876185528,0.16136332,3440.4,3440.2,3.736]
[1719876185833,0.16133542,3440.3,3440.2,3.736]
[1719876186038,2.174,3440.8,3440.2,3.736]
[1719876186240,0.82295421,3440.7,3440.2,3.736]
[1719876186439,0.15848233,3440.6,3440.2,3.736]
[1719876186816,0.16133542,3440.5,3440.2,3.736]
[1719876187142,5.0803,3440.8,3440.2,3.736]
[1719876187438,0.15847732,3440.7,3440.2,3.736]
[1719876187603,0.16133542,3440.6,3440.2,3.736]
[1719876188004,5.0803,3440.8,3440.2,3.736]
[1719876188228,0.31981291,3440.7,3440.2,3.736]
[1719876188446,0.31981291,3440.7,3440.1,2.90684]
[1719876188447,0.15847749,3440.6,3440.1,2.90684]
[1719876188743,0.15847749,3440.6,3440.2,0.736]
[1719876188905,0.31981512,3440.5,3440.2,0.736]
[1719876189104,0.16133542,3440.5,3440.2,0.736]
[1719876189418,5.0803,3440.8,3440.2,0.736]
[1719876189624,1.11845811,3440.7,3440.2,0.736]
[1719876189932,0.15847969,3440.6,3440.2,0.736]
[1719876190506,0.16133542,3440.5,3440.2,0.736]
[1719876191109,0.798643,3440.7,3440.2,0.736]
[1719876191419,0.15847975,3440.6,3440.2,0.736]
[1719876191621,0.16133542,3440.5,3440.2,0.736]
[1719876192331,3.705043,3440.7,3440.2,0.736]
[1719876192534,0.16133542,3440.4,3440.2,0.736]
[1719876192843,0.16133542,3440.3,3440.2,0.736]
[1719876193011,2.9064,3440.7,3440.2,0.736]
[1719876193338,0.31981522,3440.6,3440.2,0.736]
[1719876193531,0.16133542,3440.6,3440.2,0.736]
[1719876198342,0.15847979,3440.5,3440.2,0.736]
[1719876198523,0.16133542,3440.6,3440.2,0.736]
[1719876198724,0.16127402,3440.4,3440.2,0.736]
[1719876198922,2.9064,3440.7,3440.2,0.736]
[1719876199126,0.16127402,3440.3,3440.2,0.736]
[1719876199329,3.705056,3440.7,3440.2,0.736]
[1719876199555,0.16127402,3440.3,3440.2,0.736]
[1719876199760,2.9064,3440.7,3440.2,0.736]
[1719876200048,0.15847985,3440.6,3440.2,0.736]
[1719876200249,0.31975387,3440.6,3440.2,0.736]
[1719876200555,0.15847985,3440.5,3440.2,0.736]
[1719876200934,0.15847985,3440.5,3439.8,5.26357]
[1719876201137,0.16127402,3440.4,3440.2,0.736]
[1719876201525,2.9064,3440.7,3440.2,0.736]
[1719876201847,0.15848466,3440.6,3440.2,0.736]
[1719876202051,0.31952426,3440.6,3440.2,0.736]
[1719876202237,0.15848466,3440.5,3440.2,0.736]
[1719876202653,0.1610396,3440.4,3440.2,0.736]
[1719876202841,2.9064,3440.7,3440.2,0.736]
[1719876203153,0.1610396,3440.3,3440.2,0.736]
[1719876203449,2.90633,3440.8,3440.3,2.4347]
[1719876203650,0.15847747,3440.7,3440.4,0.736]
[1719876204016,0.15847747,3440.7,3440.3,2.4347]
[1719876204638,0.15847747,3440.7,3440.2,0.736]
[1719876204839,0.00520016,3440.5,3440.2,0.736]
[1719876205650,0.00520016,3440.5,3440.4,0.736]
[1719876208370,0.50830873,3440.5,3440.4,0.736]
[1719876209771,0.50830885,3440.5,3440.4,0.736]
[1719876212727,0.00520016,3440.5,3440.4,9.184]
[1719876213044,0.00520016,3440.5,3440.4,8.87966]
[1719876219434,0.00520016,3440.5,3440.4,8.14366]
[1719876219635,0.00520016,3440.5,3440.4,8.87966]
[1719876220485,0.00520016,3440.5,3440.4,10.05831]
[1719876227107,0.16640162,3440.5,3440.4,10.05831]
[1719876227274,0.00520016,3440.5,3440.4,5.23703]
[1719876227476,0.16640162,3440.5,3440.4,2.90663]
[1719876227677,0.32487178,3440.5,3440.4,3.64263]
[1719876228566,0.32487178,3440.5,3439.9,3.0]
[1719876228567,0.32487178,3440.5,3439.9,8.22682]
[1719876228767,0.15847016,3440.4,3440.2,0.736]
[1719876229083,0.15847016,3440.4,3440.2,3.736]
[1719876229262,0.16120146,3440.3,3440.2,3.736]
[1719876229456,0.31967162,3440.3,3440.2,3.736]
[1719876230311,0.31967553,3440.3,3440.2,3.736]
[1719876230800,0.3196756,3440.3,3440.2,3.736]
[1719876231690,0.16120146,3440.3,3440.2,3.736]
[1719876232005,0.00520016,3440.5,3440.2,3.736]
[1719876232173,0.16107866,3440.3,3440.2,3.0]
[1719876232503,0.161101,3440.3,3440.2,3.736]
[1719876232667,0.00520016,3440.5,3440.2,0.736]
[1719876232992,0.31957219,3440.4,3440.2,0.736]
[1719876233180,0.31957219,3440.4,3440.0,3.736]
[1719876233181,0.15847119,3440.3,3440.0,3.736]
[1719876233800,0.31956662,3440.2,3439.9,2.90699]
[1719876233978,0.16109543,3440.2,3440.1,0.736]
[1719876234174,0.31957864,3440.2,3440.1,0.736]
[1719876234368,0.15848321,3440.2,3439.7,2.9072]
[1719876234571,0.16109543,3440.2,3439.8,3.0]
[1719876234883,2.17920016,3440.5,3439.9,0.736]
[1719876234884,0.15848398,3440.1,3439.9,0.736]
[1719876235085,0.16106473,3440.0,3439.9,0.736]
[1719876235286,0.50857502,3440.4,3439.9,0.736]
[1719876235478,0.31954863,3440.3,3439.9,0.736]
[1719876235681,0.1584839,3440.2,3439.9,0.736]
[1719876236201,0.16106473,3440.1,3439.9,0.736]
[1719876236533,0.16106473,3440.1,3439.9,3.64305]
[1719876237205,0.00520016,3440.5,3439.9,3.64305]
[1719876237501,1.65891152,3440.4,3440.2,0.736]
[1719876237676,0.3195486,3440.3,3440.2,0.736]
[1719876242097,0.3195486,3440.3,3440.2,3.6428]
[1719876242701,0.3195486,3440.3,3440.2,9.659785]
[1719876242924,0.16106473,3440.3,3440.2,12.659785]
[1719876243266,0.00520016,3440.5,3440.4,5.81326]
[1719876243425,0.00520016,3440.5,3440.4,9.00446]
[1719876243622,0.00520016,3440.5,3440.4,10.2704045]
[1719876243858,0.00520016,3440.5,3440.4,13.8204045]
[1719876244673,0.00520016,3440.5,3440.4,16.7270345]
[1719876263609,0.00520016,3440.5,3440.4,15.9910345]
[1719876263806,0.00520016,3440.5,3440.4,16.7270345]
[1719876268011,0.00520016,3440.5,3440.4,10.0792045]
[1719876268237,0.00520016,3440.5,3440.4,10.8152045]
[1719876290027,0.00520016,3440.5,3440.4,16.5610345]
[1719876292709,0.00520016,3440.5,3440.4,19.4676645]
[1719876295966,2.174,3441.6,3441.4,2.90571]
[1719876296135,1.81976849,3441.5,3441.4,2.90571]
[1719876296337,1.81976849,3441.5,3441.4,3.64171]
[1719876297790,1.81975881,3441.5,3441.4,3.64171]
[1719876298071,1.81976127,3441.5,3441.4,3.64171]
[1719876300799,0.31991994,3441.5,3441.4,3.64171]
[1719876300946,1.81974392,3441.5,3441.4,3.64171]
[1719876301781,1.81974132,3441.5,3441.4,3.64171]
[1719876303450,0.31991994,3441.5,3441.4,3.64171]
[1719876305915,0.16149165,3441.5,3441.4,3.64171]
[1719876306119,0.31991835,3441.5,3441.4,3.64171]
[1719876308778,0.31991835,3441.5,3441.4,2.90571]
[1719876308978,0.31991835,3441.5,3441.4,3.64171]
[1719876311592,1.81977619,3441.5,3441.4,3.64171]
[1719876312109,2.32273238,3441.5,3441.4,3.64171]
[1719876312308,2.32273201,3441.5,3441.4,0.736]
[1719876312616,2.32273201,3441.5,3441.4,3.64179]
[1719876312989,0.82287441,3441.5,3441.4,3.64179]
[1719876313226,2.32273861,3441.5,3441.4,3.64179]
[1719876313629,2.32273861,3441.5,3441.4,0.736]
[1719876313928,0.82287441,3441.5,3441.4,3.64179]
[1719876314090,0.31991835,3441.5,3441.4,3.64179]
[1719876317631,0.16149165,3441.5,3441.4,3.64179]
[1719876317941,0.31991866,3441.5,3441.4,3.69990116]
[1719876318145,0.15842701,3441.5,3441.4,3.64179]
[1719876318435,0.50294661,3441.5,3441.4,3.69989991]
[1719876318618,0.82290988,3441.5,3441.4,3.64179]
[1719876318938,0.31996327,3441.5,3441.4,3.64179]
[1719876319239,0.82290946,3441.5,3441.4,3.64179]
[1719876319413,0.31996327,3441.5,3441.4,3.64179]
[1719876320345,0.82291042,3441.5,3441.4,3.64179]
[1719876322705,0.82290181,3441.5,3441.4,3.64179]
[1719876324122,0.82290181,3441.5,3441.4,2.90579]
[1719876325240,2.32274412,3441.5,3441.4,2.90579]
[1719876325746,0.31996327,3441.5,3441.4,2.90579]
[1719876325950,0.82292418,3441.5,3441.4,2.90579]
[1719876326105,2.32279487,3441.5,3441.4,2.90579]
[1719876328924,1.81983821,3441.5,3441.4,2.90579]
[1719876329151,2.32279679,3441.5,3441.4,2.90579]
[1719876332220,1.81983948,3441.5,3441.4,2.90579]
[1719876332518,2.32279846,3441.5,3441.4,2.90579]
[1719876332748,2.32279876,3441.5,3441.4,2.90579]
[1719876335463,2.32279866,3441.5,3441.4,2.90579]
[1719876338677,2.32279858,3441.5,3441.4,2.90579]
[1719876341973,2.32273341,3441.5,3441.4,2.90579]
[1719876343094,2.32273342,3441.5,3441.4,2.90579]
[1719876345166,1.81979107,3441.5,3441.4,2.90579]
[1719876345481,2.32273468,3441.5,3441.4,2.90579]
[1719876345685,2.32273467,3441.5,3441.4,2.90579]
[1719876348281,2.3227368,3441.5,3441.4,2.90579]
[1719876348479,2.32273789,3441.5,3441.4,2.90579]
[1719876350820,2.32273789,3441.5,3441.4,2.90579]
[1719876351317,1.81979377,3441.5,3441.4,2.90579]
[1719876351609,2.32272148,3441.5,3441.4,2.90579]
[1719876354679,2.32272887,3441.5,3441.4,2.90579]
[1719876357881,0.31996607,3441.5,3441.4,2.90579]
[1719876358104,2.32272975,3441.5,3441.4,2.90579]
[1719876358411,2.3227297,3441.5,3441.4,2.90579]
[1719876360391,2.32272067,3441.5,3441.4,2.90579]
[1719876360781,1.81977586,3441.5,3441.4,2.90579]
[1719876360978,2.32271464,3441.5,3441.4,2.90579]
[1719876361214,2.32271699,3441.5,3441.4,2.90579]
[1719876362918,2.16428721,3441.5,3441.4,2.90579]
[1719876363289,2.3227109,3441.5,3441.4,2.90579]
[1719876363492,2.32271844,3441.5,3441.4,2.90579]
[1719876366818,2.32272486,3441.5,3441.4,2.90579]
[1719876369925,2.32275345,3441.5,3441.4,2.90579]
[1719876370335,0.31995998,3441.5,3441.4,2.90579]
[1719876370540,2.32275701,3441.5,3441.4,2.90579]
[1719876373015,0.31995998,3441.5,3441.4,2.90579]
[1719876373188,0.82291059,3441.5,3441.4,2.90579]
[1719876373602,0.82291059,3441.5,3440.4,3.0]
[1719876373603,2.76397776,3441.5,3440.4,3.0]
[1719876373819,2.76397776,3441.5,3440.3,3.0]
[1719876373820,5.07993,3441.3,3440.5,2.9065]
[1719876373990,5.99344469,3441.2,3440.5,2.9065]
[1719876374185,2.83178123,3441.1,3440.5,2.9065]
[1719876374389,0.15842369,3441.0,3440.5,2.9065]
[1719876374622,0.31995996,3440.9,3440.5,2.9065]
[1719876374788,0.15842369,3440.8,3440.5,2.9065]
[1719876375209,2.32315674,3440.7,3440.5,2.9065]
[1719876375427,0.15842369,3440.6,3440.5,2.9065]
[1719876375938,0.15842369,3440.6,3440.0,2.90697]
[1719876375939,0.82304408,3440.6,3440.0,2.90697]
[1719876376141,0.96121222,3440.5,3440.0,2.90697]
[1719876376428,0.96121222,3440.5,3439.8,0.736]
[1719876376429,0.15842369,3440.4,3439.8,2.90708]
[1719876376731,0.15842369,3440.4,3439.9,2.90704]
[1719876377027,0.16108985,3440.3,3439.9,2.90704]
[1719876377527,0.29970441,3440.5,3439.9,3.64304]
[1719876377693,0.16108985,3440.2,3439.9,3.64304]
[1719876377894,0.29970441,3440.5,3439.9,3.64304]
[1719876378144,0.16108985,3440.1,3439.9,3.64304]
[1719876378431,1.65891356,3440.4,3439.7,0.736]
[1719876378432,0.16108985,3440.0,3439.7,0.736]
[1719876378638,3.44463944,3440.4,3439.7,3.736]
[1719876378829,0.663992,3440.3,3439.7,3.736]
[1719876378994,0.15848844,3440.2,3439.7,3.736]
[1719876379318,0.34446394,3440.3,3439.7,3.736]
[1719876379797,0.16103962,3440.2,3439.7,6.64322]
[1719876380593,2.90663,3440.4,3439.7,6.64322]
[1719876380793,0.16103962,3440.3,3439.7,6.64322]
[1719876383740,0.16103962,3440.3,3439.8,2.90713]
[1719876384026,2.90655,3440.5,3439.9,3.0]
[1719876384230,0.16103962,3440.4,3439.9,3.0]
[1719876384597,0.16103962,3440.4,3439.8,2.90713]
[1719876385133,0.00520016,3440.1,3439.8,3.64313]
[1719876385438,0.16098379,3440.0,3439.8,3.64313]
[1719876387550,0.16098379,3440.0,3439.9,2.90706]
[1719876388758,0.16098379,3440.0,3439.9,3.64306]
[1719876389557,0.16098379,3440.0,3439.9,9.680755]
[1719876389958,0.16098379,3440.0,3439.9,7.205155]
[1719876392261,0.16098379,3440.0,3439.9,15.442215]
[1719876392574,0.00520016,3440.1,3440.0,8.72091]
[1719876392725,0.00520016,3440.1,3440.0,12.27091]
[1719876392929,0.00520016,3440.1,3440.0,14.5158145]
[1719876396070,0.00520016,3440.1,3440.0,16.7925145]
[1719876396278,0.00520016,3440.1,3440.0,17.5285145]
[1719876400641,2.174,3441.1,3440.6,2.90641]
[1719876401159,0.16102285,3441.0,3440.6,2.90641]
[1719876404748,0.50306949,3440.9,3440.6,2.90641]
[1719876404950,0.16102285,3441.0,3440.6,2.90641]
[1719876405290,0.50307367,3440.9,3440.6,2.90641]
[1719876405449,0.16102285,3440.9,3440.6,2.90641]
[1719876405649,2.174,3441.1,3440.6,2.90641]
[1719876405848,0.6615359,3441.0,3440.6,2.90641]
[1719876406086,0.5030708,3440.9,3440.6,2.90641]
[1719876406267,0.5030708,3440.9,3440.2,2.9068]
[1719876406473,0.5030708,3440.9,3440.4,0.736]
[1719876406661,0.161101,3440.8,3440.4,0.736]
[1719876407168,2.90613,3441.0,3440.4,0.736]
[1719876407356,0.16108426,3440.7,3440.4,0.736]
[1719876407550,2.90613,3441.0,3440.4,0.736]
[1719876407750,0.16108426,3440.6,3440.4,0.736]
[1719876407991,2.90613,3441.0,3440.4,0.736]
[1719876408161,0.16108426,3440.5,3440.4,0.736]
[1719876408349,2.90613,3441.0,3440.4,0.736]
[1719876408682,0.16108426,3440.5,3440.4,3.64263]
[1719876409262,5.08006,3441.1,3440.4,3.64263]
[1719876409483,0.16103405,3440.5,3440.4,3.64263]
[1719876409700,5.08006,3441.1,3440.4,3.64263]
[1719876409900,5.08006,3441.1,3440.6,0.736]
[1719876409901,0.66155963,3441.0,3440.6,0.736]
[1719876410108,2.674,3441.1,3440.7,0.05812445]
[1719876410109,0.5,3441.1,3440.7,0.05812445]
[1719876410274,7.48,3441.7,3440.9,3.1988]
[1719876410472,7.48,3441.7,3441.2,2.9059]
[1719876410473,0.5,3441.3,3441.2,2.9059]
[1719876410989,7.48,3441.7,3441.2,2.9059]
[1719876411301,0.66142942,3441.6,3441.2,2.9059]
[1719876411508,0.15843902,3441.5,3441.2,2.9059]
[1719876411677,0.5029919,3441.7,3441.2,2.9059]
[1719876411886,0.97913028,3441.6,3441.2,2.9059]
[1719876412081,0.66143109,3441.5,3441.2,2.9059]
[1719876412281,2.174,3441.8,3441.2,2.9059]
[1719876412481,2.16140924,3441.7,3441.2,2.9059]
[1719876412678,0.66143154,3441.6,3441.2,2.9059]
[1719876412866,0.15843935,3441.5,3441.2,2.9059]
[1719876413090,2.674,3441.8,3441.2,2.9059]
[1719876413268,2.16140742,3441.7,3441.2,2.9059]
[1719876413464,0.66143096,3441.6,3441.2,2.9059]
[1719876413693,0.15843927,3441.5,3441.2,2.9059]
[1719876413895,0.15843927,3441.4,3441.2,2.9059]
[1719876414106,2.674,3441.8,3441.2,2.9059]
[1719876414399,2.16140623,3441.7,3441.2,2.9059]
[1719876414606,0.1584393,3441.6,3441.2,2.9059]
[1719876414786,0.1584393,3441.5,3441.2,2.9059]
[1719876414983,0.16363946,3441.5,3441.2,2.9059]
[1719876415189,0.1584393,3441.4,3441.2,2.9059]
[1719876415505,0.1584393,3441.4,3441.3,2.90587]
[1719876419407,0.1584393,3441.4,3441.3,3.64187]
[1719876422910,0.1584393,3441.4,3441.3,2.90587]
[1719876423116,2.174,3441.3,3440.5,5.90654]
[1719876423347,0.736,3440.8,3440.1,2.90686]
[1719876423637,1.27550125,3441.2,3440.1,2.90686]
[1719876423638,0.15847143,3440.7,3440.1,2.90686]
[1719876423926,0.15847143,3440.6,3440.1,2.90686]
[1719876424237,0.15847143,3440.5,3440.1,2.90686]
[1719876424515,0.16139401,3440.5,3440.1,2.90686]
[1719876424680,2.674,3440.7,3440.1,2.90686]
[1719876424872,1.21963383,3440.6,3440.1,2.90686]
[1719876425078,0.15848007,3440.5,3440.1,2.90686]
[1719876425315,0.31975968,3440.5,3440.1,2.90686]
[1719876425508,0.16127961,3440.5,3440.1,2.90686]
[1719876426625,2.174,3440.7,3440.2,0.736]
[1719876426790,0.16127961,3440.4,3440.2,0.736]
[1719876427116,0.16127961,3440.3,3440.2,0.736]
[1719876427475,2.682028,3440.7,3440.2,0.736]
[1719876427683,0.15848045,3440.6,3440.2,0.736]
[1719876428219,0.16127961,3440.5,3440.2,0.736]
[1719876428797,2.682028,3440.7,3440.2,0.736]
[1719876429122,1.22044159,3440.6,3440.2,0.736]
[1719876429323,0.15848049,3440.5,3440.2,0.736]
[1719876429637,0.3197601,3440.5,3440.2,0.736]
[1719876429934,0.16127961,3440.5,3440.2,0.736]
[1719876430522,0.16127961,3440.4,3440.2,0.736]
[1719876430689,0.16127961,3440.4,3440.2,3.64279]
[1719876430919,0.16127961,3440.3,3440.2,3.64279]
[1719876431120,5.08018,3441.0,3440.2,3.64279]
[1719876431324,2.32325619,3440.9,3440.2,3.64279]
[1719876431564,2.16197658,3440.8,3440.2,3.64279]
[1719876431766,0.66159908,3440.7,3440.2,3.64279]
[1719876432071,0.15848007,3440.6,3440.2,3.64279]
[1719876432630,0.31975968,3440.5,3440.2,3.64279]
[1719876432947,0.16127961,3440.5,3440.2,3.64279]
[1719876433255,5.08018,3441.0,3440.2,3.64279]
[1719876433459,0.16107868,3440.4,3440.2,3.64279]
[1719876433666,0.5,3440.8,3440.2,3.64279]
[1719876433970,2.16197777,3440.7,3440.2,3.64279]
[1719876434179,0.15847991,3440.6,3440.2,3.64279]
[1719876434529,0.15847991,3440.6,3440.4,0.736]
[1719876434749,0.31955859,3440.5,3440.4,0.736]
[1719876437673,0.31955859,3440.5,3440.3,2.9067]
[1719876437840,0.15847991,3440.4,3440.3,3.6427]
[1719876438346,0.31947486,3440.4,3440.3,3.6427]
[1719876439387,0.31947486,3440.4,3440.3,0.736]
[1719876439546,0.31947486,3440.4,3440.1,2.90683]
[1719876439892,0.16099495,3440.4,3440.1,3.64283]
[1719876440263,2.90621,3440.9,3440.1,3.64283]
[1719876440469,0.16099495,3440.3,3440.1,3.64283]
[1719876440772,2.90621,3440.9,3440.2,2.90678]
[1719876440975,2.6619923,3440.8,3440.2,2.90678]
[1719876441172,1.65886952,3440.7,3440.2,2.90678]
[1719876441374,0.15848015,3440.6,3440.2,2.90678]
[1719876441596,0.15848015,3440.5,3440.2,2.90678]
[1719876441752,2.90621,3440.9,3440.2,2.90678]
[1719876441753,0.15848015,3440.4,3440.2,2.90678]
[1719876441952,2.90621,3440.9,3440.2,2.90678]
[1719876442187,2.16199117,3440.8,3440.2,2.90678]
[1719876442398,1.65886887,3440.7,3440.2,2.90678]
[1719876442564,0.15848028,3440.6,3440.2,2.90678]
[1719876442771,0.15848028,3440.5,3440.2,2.90678]
[1719876442977,0.15848028,3440.4,3440.3,0.736]
[1719876443276,0.5,3440.8,3440.3,0.736]
[1719876443541,1.65884326,3440.7,3440.3,0.736]
[1719876443739,0.15847915,3440.6,3440.3,0.736]
[1719876443972,0.15847915,3440.5,3440.3,2.90672]
[1719876444224,2.174,3441.0,3440.4,3.933302]
[1719876444531,2.16194237,3440.9,3440.6,0.736]
[1719876444741,2.16194237,3440.8,3440.6,0.736]
[1719876444886,0.15847727,3440.7,3440.6,0.736]
[1719876445587,0.15847727,3441.0,3440.6,3.64245]
[1719876445795,0.15847727,3440.9,3440.8,2.9063]
[1719876446099,0.15847727,3440.9,3440.8,3.6423]
[1719876446317,7.48520016,3441.5,3440.9,2.9062]
[1719876446518,2.16159275,3441.4,3441.0,0.736]
[1719876446714,2.16159275,3441.3,3441.0,0.736]
[1719876446899,0.66148594,3441.2,3441.0,0.736]